bitfinex-derivatives/quotes_ETHF0:USTF0_20250416
["timestamp","ask_amount","ask_price","bid_price","bid_amount"]
[1744833766320,3.18792,1587.5,1587.1,40.8]
[1744833766525,1.9282,1587.5,1587.4,1.25977]
[1744833767231,1.25979,1587.4,1587.3,1.25983]
[1744833767425,1.25985,1587.3,1587.2,1.778]
[1744833767932,1.9282,1587.5,1587.2,1.25992]
[1744833768233,1.9282,1587.5,1587.1,42.7204]
[1744833768234,1.25983,1587.4,1587.1,42.7204]
[1744833768530,1.8797,1587.3,1587.2,3.18025]
[1744833769333,3.13955,1587.3,1587.2,3.18025]
[1744833770132,3.13955,1587.3,1587.2,1.9204]
[1744833770332,3.13955,1587.3,1587.2,3.18032]
[1744833770526,3.13955,1587.3,1587.2,1.9204]
[1744833771023,3.13955,1587.3,1587.2,6.38812]
[1744833771024,1.8797,1587.3,1587.2,6.38812]
[1744833771332,1.25981,1587.4,1587.3,1.25983]
[1744833771533,3.24421,1587.4,1587.3,1.25983]
[1744833772233,1.9844,1587.4,1587.3,1.25983]
[1744833772434,1.26906358,1587.6,1587.5,1.25969]
[1744833772634,0.00945358,1587.6,1587.5,1.25969]
[1744833772927,0.00945358,1587.6,1587.5,3.20239]
[1744833773132,1.26906358,1587.6,1587.5,1.9427]
[1744833773336,1.25969,1587.5,1587.4,1.25974]
[1744833773537,1.25981,1587.4,1587.1,52.761]
[1744833773734,1.25985,1587.3,1587.2,2.0489]
[1744833773923,1.26008,1587.0,1586.9,0.00945358]
[1744833774930,3.12358,1587.0,1586.9,0.00945358]
[1744833775232,1.8635,1587.0,1586.9,1.26961358]
[1744833775430,3.12358,1587.0,1586.9,0.00945358]
[1744833775632,3.12358,1587.0,1586.9,1.26961358]
[1744833776131,1.8635,1587.0,1586.9,1.26961358]
[1744833776526,1.25981,1587.4,1587.2,1.25987]
[1744833776720,1.8967,1587.3,1587.2,1.25987]
[1744833777436,1.25989,1587.3,1587.1,1.9575]
[1744833777733,0.00945358,1587.6,1587.1,1.9575]
[1744833777935,1.8967,1587.4,1587.3,1.25985]
[1744833778136,3.1565,1587.4,1587.2,1.25986]
[1744833778428,1.8967,1587.4,1587.3,1.25985]
[1744833778830,3.15647,1587.4,1587.3,1.25985]
[1744833779027,1.8967,1587.4,1587.0,3.2078]
[1744833779227,3.1565,1587.4,1587.0,8.31539]
[1744833779422,1.25985,1587.3,1586.9,3.15981358]
[1744833779729,1.25985,1587.3,1587.2,1.25992]
[1744833780337,1.26008,1587.0,1586.9,0.00945358]
[1744833780636,1.26008,1587.0,1586.9,1.26956358]
[1744833780828,1.26007,1587.1,1586.9,1.26956358]
[1744833781027,1.26008,1587.0,1586.9,1.26956358]
[1744833781229,1.26008,1587.0,1586.9,0.00945358]
[1744833781425,1.26006,1587.1,1586.9,1.26961358]
[1744833781630,1.26008,1587.0,1586.9,0.00945358]
[1744833781830,1.26008,1587.0,1586.9,1.26961358]
[1744833782030,2.0174,1587.2,1586.9,0.00945358]
[1744833782234,3.27739,1587.2,1587.0,1.26004]
[1744833782528,2.0174,1587.2,1587.1,4.4678]
[1744833782730,2.0174,1587.2,1586.9,5.25065358]
[1744833783038,1.26008,1587.0,1586.9,0.00945358]
[1744833783236,1.26005,1587.1,1586.9,0.00945358]
[1744833783434,1.26005,1587.1,1586.9,1.26955358]
[1744833784638,1.26008,1587.0,1586.9,0.00945358]
[1744833785344,1.26032,1586.7,1586.6,5.856]
[1744833785633,1.26032,1586.7,1586.6,47.9164]
[1744833785833,1.9991,1586.9,1586.6,46.656]
[1744833786033,2.50052329,1587.2,1586.8,3.15061]
[1744833786244,1.26002,1587.1,1586.9,3.2078]
[1744833786437,1.26002,1587.1,1586.9,1.26016]
[1744833786742,1.26008,1587.0,1586.9,1.26016]
[1744833787237,1.26016,1586.9,1586.8,0.00945358]
[1744833788739,1.26046,1586.6,1586.4,1.26049]
[1744833789140,1.26046,1586.6,1586.5,40.8]
[1744833789842,3.15105,1586.6,1586.3,3.2078]
[1744833790045,1.26056,1586.4,1586.3,3.19856145]
[1744833791136,1.26079,1586.2,1586.0,3.28146]
[1744833791339,11.12854,1586.6,1586.0,3.2078]
[1744833791540,1.26061,1586.4,1586.2,1.26069]
[1744833791741,1.26072,1586.2,1586.1,42.6807]
[1744833792144,1.26072,1586.2,1586.1,43.9415]
[1744833792341,11.12854,1586.6,1586.1,1.26072]
[1744833792650,7.9775,1586.6,1586.0,8.24066]
[1744833792856,2.06075358,1586.7,1586.4,6.35915]
[1744833793147,2.05151503,1586.7,1586.6,1.2604]
[1744833793335,2.05151503,1586.7,1586.6,4.4682]
[1744833793540,0.00945358,1586.7,1586.6,4.4682]
[1744833793748,0.00945358,1586.7,1586.6,1.2604]
[1744833794146,1.26978358,1586.7,1586.5,3.14112]
[1744833794346,0.00945358,1586.7,1586.6,1.2604]
[1744833794645,0.00945358,1586.7,1586.5,3.14114]
[1744833794646,1.26983358,1586.7,1586.5,3.14114]
[1744833794845,1.2604,1586.6,1586.5,1.26044]
[1744833795048,1.26055,1586.5,1586.3,1.26063]
[1744833795247,0.00945358,1586.7,1586.6,1.2604]
[1744833795447,0.00021503,1586.7,1586.5,1.26976854]
[1744833795750,1.2604,1586.6,1586.5,0.00930854]
[1744833796141,8.3068,1586.6,1586.5,0.00930854]
[1744833796552,1.26072,1586.2,1586.1,40.8]
[1744833796745,1.26076,1586.2,1586.0,3.16693]
[1744833796946,1.26067,1586.3,1586.0,5.1139]
[1744833797146,1.26067,1586.3,1586.1,1.2608]
[1744833797341,1.26067,1586.3,1586.1,1.26072]
[1744833797543,3.2078,1585.9,1585.0,4.86486405]
[1744833797742,3.21725358,1585.6,1585.1,1.926]
[1744833798254,3.21725358,1585.6,1585.4,1.26131]
[1744833798445,4.47845358,1585.6,1585.5,1.926]
[1744833798644,3.21725358,1585.6,1585.2,44.0018]
[1744833798844,0.00945358,1585.6,1585.2,45.26329]
[1744833799041,0.00945358,1585.6,1585.3,1.926]
[1744833799252,3.2078,1585.5,1585.3,6.38923]
[1744833799446,3.2078,1585.5,1585.4,1.926]
[1744833799643,3.2078,1585.5,1585.3,3.2018]
[1744833799953,2.0094,1585.4,1585.3,5.1278]
[1744833800250,0.00945358,1585.6,1585.3,6.38918]
[1744833800445,0.00945358,1585.6,1585.4,4.0062]
[1744833800652,1.92305358,1585.9,1585.5,6.1]
[1744833800851,1.92305358,1585.9,1585.6,1.9731]
[1744833801050,3.18403358,1585.9,1585.6,3.23427]
[1744833801253,1.92305358,1585.9,1585.6,1.9731]
[1744833801451,1.26108,1585.8,1585.7,1.9731]
[1744833802251,1.2612,1585.6,1585.4,10.1656]
[1744833802454,3.2078,1585.6,1585.5,1.9731]
[1744833802653,1.26115,1585.7,1585.5,1.9731]
[1744833803048,4.469,1585.6,1585.5,1.9731]
[1744833803652,1.26114,1585.7,1585.5,1.9731]
[1744833803851,1.2612,1585.6,1585.5,1.9731]
[1744833804557,4.469,1585.6,1585.5,1.9731]
[1744833804750,4.469,1585.6,1585.4,2.0331]
[1744833804751,1.26135,1585.4,1585.3,0.00945358]
[1744833805057,4.46915,1585.4,1585.3,0.00945358]
[1744833805447,1.9819,1585.5,1585.3,0.00945358]
[1744833805650,1.26135,1585.4,1585.3,0.00945358]
[1744833806657,1.9819,1585.5,1585.3,0.00945358]
[1744833806954,3.21725358,1585.9,1585.4,3.2078]
[1744833807155,0.00945358,1585.9,1585.5,8.0061]
[1744833807358,0.00945358,1585.9,1585.7,1.26106]
[1744833807553,1.27041358,1585.9,1585.8,1.9041]
[1744833807762,0.00945358,1585.9,1585.8,1.9041]
[1744833808056,1.27041358,1585.9,1585.8,1.9041]
[1744833808254,4.47821358,1585.9,1585.8,1.9041]
[1744833808558,1.27041358,1585.9,1585.8,1.9041]
[1744833809453,3.21725358,1585.9,1585.8,1.9041]
[1744833809659,1.9637,1586.3,1585.8,1.9041]
[1744833809660,3.2078,1586.5,1585.8,6.9041]
[1744833809852,1.26074,1586.2,1585.9,3.2078]
[1744833810159,1.26067,1586.3,1586.1,1.2608]
[1744833810347,3.2078,1586.5,1586.2,1.8525]
[1744833810551,1.26064,1586.3,1586.2,1.8525]
[1744833810752,1.26064,1586.3,1586.2,1.86195358]
[1744833811258,1.26064,1586.3,1586.2,0.00945358]
[1744833811460,4.46844,1586.3,1586.2,0.00945358]
[1744833812249,1.26098,1585.9,1585.7,9.28347]
[1744833812455,1.26098,1585.9,1585.7,11.13597]
[1744833812659,1.26098,1585.9,1585.8,40.8]
[1744833812848,1.26104,1585.8,1585.7,3.7729]
[1744833813053,5.03945,1586.0,1585.4,3.2078]
[1744833813254,1.26123,1585.6,1585.5,1.9897]
[1744833813552,1.26123,1585.6,1585.5,1.99915358]
[1744833813759,3.14843,1585.6,1585.5,0.00945358]
[1744833814460,3.14843,1585.6,1585.5,1.99915358]
[1744833815760,3.14843,1585.6,1585.5,0.00945358]
[1744833816358,3.15328,1585.5,1584.9,1.26171]
[1744833816555,1.26172,1585.0,1584.9,40.8]
[1744833816750,6.36145,1585.3,1584.9,42.7701]
[1744833816953,1.26167,1585.0,1584.9,42.7701]
[1744833817162,4.46946,1585.1,1584.9,44.03185]
[1744833817463,1.26167,1585.0,1584.9,42.7701]
[1744833817662,3.21017,1585.0,1584.9,42.7701]
[1744833817864,4.46942,1585.1,1584.9,44.03185]
[1744833818164,1.26167,1585.0,1584.9,42.7701]
[1744833818363,3.21017,1585.0,1584.9,42.7701]
[1744833821663,3.21017,1585.0,1584.9,40.8]
[1744833821964,1.26183,1584.8,1584.6,1.26197]
[1744833822166,1.26207,1584.5,1584.4,1.8823]
[1744833822366,1.26206,1584.6,1584.4,44.08773]
[1744833822663,1.9284,1584.5,1584.4,44.08773]
[1744833822877,3.2078,1584.8,1584.7,1.26191]
[1744833823068,3.2078,1584.8,1584.6,1.26194]
[1744833823258,3.19031,1584.7,1584.6,2.0256]
[1744833823463,1.26207,1584.5,1584.4,46.904]
[1744833823664,1.26207,1584.5,1584.4,40.8]
[1744833824261,4.46985,1584.6,1584.5,1.26207]
[1744833824468,3.19038,1584.7,1584.5,3.28764]
[1744833824661,1.26199,1584.6,1584.5,2.0256]
[1744833824966,3.19037,1584.7,1584.5,3.28763]
[1744833825162,1.26199,1584.6,1584.5,2.0256]
[1744833825563,1.26199,1584.6,1584.2,5.163]
[1744833825564,3.2078,1584.6,1584.2,5.163]
[1744833825767,4.46995,1584.4,1584.3,1.9304]
[1744833825963,1.26223,1584.3,1584.0,3.2078]
[1744833826264,0.00945358,1584.3,1584.2,1.26231]
[1744833826465,0.00945358,1584.3,1584.1,1.9304]
[1744833826659,0.00945358,1584.3,1584.2,1.26231]
[1744833826862,1.27172358,1584.3,1584.1,3.19274]
[1744833827061,3.22992358,1584.3,1584.1,1.26234]
[1744833827257,1.27172358,1584.3,1584.2,1.9304]
[1744833827462,0.00945358,1584.3,1584.2,3.19271]
[1744833828160,0.00945358,1584.3,1584.2,1.26231]
[1744833830066,1.26231,1584.2,1584.1,1.26234]
[1744833830375,1.26231,1584.2,1584.1,0.099]
[1744833830571,6.36591,1584.2,1584.1,0.099]
[1744833831271,3.21194358,1584.3,1584.1,0.099]
[1744833831570,3.21194358,1584.3,1584.2,1.9517]
[1744833832772,1.94965358,1584.3,1584.2,1.9517]
[1744833832975,3.21188358,1584.3,1584.2,1.9517]
[1744833834077,1.26231,1584.2,1584.1,2.0507]
[1744833834677,1.26231,1584.2,1584.1,3.31309]
[1744833834978,1.94965358,1584.3,1584.1,2.0507]
[1744833835181,1.26231,1584.2,1584.1,2.0507]
[1744833835380,4.47011,1584.2,1584.1,2.0507]
[1744833835579,1.94965358,1584.3,1584.1,3.31309]
[1744833835777,0.00945358,1584.3,1584.1,0.099]
[1744833835975,3.2078,1584.8,1584.3,3.15558]
[1744833836177,3.2078,1585.1,1584.5,3.2078]
[1744833836368,2.0353,1584.9,1584.8,1.26183]
[1744833836574,1.26169,1585.0,1584.8,1.26183]
[1744833836774,2.0353,1585.1,1585.0,1.26167]
[1744833836977,9.3098,1585.3,1585.1,1.26152]
[1744833837189,4.47881358,1585.2,1585.0,1.26165]
[1744833837475,1.26163,1585.1,1584.9,3.19298358]
[1744833837677,2.0278,1585.1,1585.0,1.26167]
[1744833837889,2.0278,1585.1,1585.0,1.9709]
[1744833838181,0.00945358,1585.2,1585.1,1.26159]
[1744833838777,1.27100358,1585.2,1585.0,1.9709]
[1744833839076,1.27096358,1585.2,1585.1,1.26159]
[1744833839280,0.00945358,1585.2,1585.1,1.26159]
[1744833839482,0.00945358,1585.2,1585.1,40.8]
[1744833839980,1.27096358,1585.2,1585.1,40.8]
[1744833840379,1.26167,1585.0,1584.9,0.00945358]
[1744833840975,3.19297,1585.0,1584.9,0.00945358]
[1744833841173,0.00945358,1585.2,1584.9,1.88455358]
[1744833841380,1.26167,1585.0,1584.9,1.88455358]
[1744833841780,1.9313,1585.0,1584.9,1.88455358]
[1744833841975,1.94075358,1585.2,1585.1,1.26159]
[1744833842172,1.26167,1585.0,1584.9,3.14626358]
[1744833842376,1.26166,1585.1,1584.9,1.88455358]
[1744833842574,1.26166,1585.1,1584.9,3.14624358]
[1744833843184,3.19296,1585.1,1584.9,3.14624358]
[1744833843384,1.26167,1585.0,1584.9,1.88455358]
[1744833843573,3.20767,1585.0,1584.9,0.00945358]
[1744833843778,1.946,1585.0,1584.9,1.27120358]
[1744833844081,1.26165,1585.1,1584.9,44.04210358]
[1744833844483,3.21725358,1585.2,1585.0,1.26162]
[1744833844788,3.21700358,1585.2,1585.1,1.9709]
[1744833845080,3.21700358,1585.2,1585.1,3.23249]
[1744833845081,0.00945358,1585.2,1585.1,3.23249]
[1744833845283,1.946,1585.6,1585.5,1.26128]
[1744833845486,1.2612,1585.6,1585.5,1.26128]
[1744833845680,1.2612,1585.6,1585.5,40.8]
[1744833846776,0.00945358,1585.7,1585.5,43.96558]
[1744833846981,3.22513358,1585.7,1585.5,43.96558]
[1744833847178,0.00945358,1585.7,1585.6,1.2612]
[1744833847584,0.00945358,1585.7,1585.5,42.7043]
[1744833847585,1.2612,1585.6,1585.5,42.7043]
[1744833847789,0.00945358,1585.7,1585.6,1.2612]
[1744833848087,1.27057358,1585.7,1585.5,43.96553]
[1744833848588,0.00945358,1585.7,1585.6,1.2612]
[1744833850382,3.58e-06,1585.7,1585.6,15.325]
[1744833852196,1.26055,1586.5,1586.3,1.26059]
[1744833852486,3.12232,1586.6,1586.5,0.00923855]
[1744833852692,6.33012,1586.6,1586.5,0.00923855]
[1744833852987,6.33016,1586.6,1586.5,1.26048]
[1744833853190,6.33016,1586.6,1586.2,1.8415]
[1744833853191,6.8619,1586.6,1586.2,1.8415]
[1744833853394,1.26048,1586.5,1586.4,0.00945358]
[1744833853692,3.12238,1586.5,1586.4,0.00945358]
[1744833854286,1.26084,1586.1,1586.0,1.26085]
[1744833854587,1.26077,1586.2,1586.1,1.8523]
[1744833854789,1.8619,1586.3,1585.7,6.099]
[1744833854993,1.2611,1585.8,1585.6,3.11345]
[1744833855188,1.2611,1585.8,1585.7,3.11342]
[1744833855494,0.00945358,1585.9,1585.7,1.8523]
[1744833855689,1.26104,1585.8,1585.7,1.8523]
[1744833855891,3.28454,1585.8,1585.7,1.8523]
[1744833857092,6.49234,1585.8,1585.7,1.8523]
[1744833857290,2.0235,1585.8,1585.5,40.80945358]
[1744833857496,3.2846,1585.8,1585.6,1.26119]
[1744833857689,3.2846,1585.8,1585.7,1.963]
[1744833857893,1.2611,1585.8,1585.7,1.963]
[1744833858087,1.27045358,1585.9,1585.7,1.963]
[1744833858292,1.27045358,1585.9,1585.8,1.26104]
[1744833858497,0.00945358,1585.9,1585.8,1.26104]
[1744833859696,1.26074,1586.2,1585.9,3.15234]
[1744833859895,7.076,1586.5,1586.1,1.2608]
[1744833860200,3.2078,1586.5,1586.2,1.8572]
[1744833860396,1.8465,1586.7,1586.4,1.26053]
[1744833860594,1.2606,1586.4,1586.2,1.8572]
[1744833860888,1.26999358,1586.5,1586.3,1.26062]
[1744833861094,0.00945358,1586.5,1586.3,1.26062]
[1744833861405,1.26998358,1586.5,1586.3,1.26056]
[1744833861595,1.26056,1586.4,1586.3,1.26056]
[1744833861791,1.26066,1586.3,1586.2,1.2607]
[1744833862098,3.07222,1586.4,1586.1,3.88105358]
[1744833862294,1.8116,1586.4,1586.1,3.88105358]
[1744833862501,1.8116,1586.4,1586.2,1.26069]
[1744833862502,1.26066,1586.3,1586.2,1.26069]
[1744833862903,1.26072,1586.2,1586.1,1.27024358]
[1744833863104,1.26069,1586.3,1586.1,0.00945358]
[1744833863308,1.26069,1586.3,1586.2,1.26072]
[1744833863506,1.26069,1586.3,1586.1,1.27018358]
[1744833863805,1.26069,1586.3,1586.1,0.00945358]
[1744833864007,1.26069,1586.3,1586.1,1.84905358]
[1744833864199,1.26069,1586.3,1586.2,1.26072]
[1744833864500,1.26069,1586.3,1586.1,3.10979358]
[1744833864907,1.26072,1586.2,1586.1,0.00945358]
[1744833865109,1.26072,1586.2,1586.1,1.27025358]
[1744833865710,1.26072,1586.2,1586.1,0.00945358]
[1744833865912,1.8116,1586.4,1586.1,1.27021358]
[1744833866110,1.26072,1586.2,1586.1,1.27021358]
[1744833866312,1.26072,1586.2,1586.1,0.00945358]
[1744833866513,6.26072,1586.2,1586.1,0.00945358]
[1744833866910,6.26072,1586.2,1586.1,3.58e-06]
[1744833867107,1.26104,1585.8,1585.7,0.08763]
[1744833867306,4.46884,1585.8,1585.7,0.08763]
[1744833867508,9.46884,1585.8,1585.7,0.08763]
[1744833868211,11.38684,1585.8,1585.7,0.08763]
[1744833868413,3.17904,1585.8,1585.7,0.08763]
[1744833870219,9.2968,1586.0,1585.7,0.08763]
[1744833870517,1.26098,1585.9,1585.7,1.34869]
[1744833870719,5.0866,1586.4,1585.7,12.53704]
[1744833870917,1.26056,1586.4,1586.2,1.26066]
[1744833871118,1.26064,1586.3,1586.1,1.26073]
[1744833871319,1.26062,1586.4,1586.2,1.26072]
[1744833871516,1.26062,1586.4,1585.9,6.3602]
[1744833871716,1.26062,1586.4,1586.2,1.2607]
[1744833871917,1.2607,1586.3,1586.1,1.26078]
[1744833872418,1.2606,1586.4,1586.2,1.2607]
[1744833872618,1.26061,1586.4,1586.2,1.26071]
[1744833872926,1.2606,1586.4,1586.2,1.2607]
[1744833873126,1.26998358,1586.5,1586.3,1.26057]
[1744833873430,1.26998358,1586.5,1586.4,40.8]
[1744833873727,0.00945358,1586.5,1586.4,42.06056]
[1744833874322,0.00945358,1586.5,1586.4,40.8]
[1744833874527,1.26993358,1586.5,1586.4,40.8]
[1744833875223,3.58e-06,1586.5,1586.4,50.26836]
[1744833875422,3.2078,1587.4,1586.5,3.15121]
[1744833875725,3.2078,1587.4,1587.0,1.26002]
[1744833875726,1.25992,1587.3,1587.0,1.26002]
[1744833875922,3.2078,1587.4,1586.9,6.088]
[1744833876122,1.26003,1587.1,1586.9,7.34811]
[1744833876323,1.25997,1587.2,1587.0,1.26008]
[1744833876530,1.26001,1587.1,1586.9,7.35755358]
[1744833878131,1.26008,1587.0,1586.9,7.35755358]
[1744833878329,1.26005,1587.1,1586.9,7.35755358]
[1744833878732,0.00945358,1587.3,1586.9,6.09745358]
[1744833878925,1.26932358,1587.3,1587.1,1.25995]
[1744833879127,1.25995,1587.2,1587.0,1.26002]
[1744833879326,1.25995,1587.2,1587.1,1.8632]
[1744833879626,1.83295358,1587.3,1587.1,1.8632]
[1744833879821,3.2078,1587.2,1586.9,0.00945358]
[1744833880126,1.25996,1587.2,1587.0,1.26008]
[1744833880319,3.09286358,1587.3,1587.1,3.1758]
[1744833880521,1.25992,1587.2,1587.1,3.1758]
[1744833880722,1.25992,1587.2,1587.1,1.9158]
[1744833880925,0.00945358,1587.3,1587.1,1.9158]
[1744833881132,1.25992,1587.2,1587.1,1.9158]
[1744833881524,3.15526358,1587.3,1587.1,3.1758]
[1744833881730,1.89535358,1587.3,1587.2,1.25992]
[1744833881930,0.00945358,1587.3,1587.2,3.17572]
[1744833882824,0.00945358,1587.3,1587.2,8.17572]
[1744833883628,0.00945358,1587.3,1587.2,48.97572]
[1744833885234,3.58e-06,1587.3,1587.2,48.97572]
[1744833888224,1.25957,1587.7,1587.6,1.25959]
[1744833888426,3.2078,1587.7,1587.2,42.7158]
[1744833888637,1.25985,1587.3,1587.2,40.8]
[1744833889126,6.25985,1587.3,1587.2,40.8]
[1744833889334,6.25985,1587.3,1587.2,42.05992]
[1744833889629,1.25985,1587.3,1587.2,42.05992]
[1744833890024,3.05388358,1587.4,1587.2,42.05992]
[1744833890236,1.25985,1587.3,1587.2,42.05992]
[1744833890437,3.04445,1587.3,1587.2,42.05992]
[1744833890735,3.04365,1587.3,1587.2,40.8]
[1744833891737,6.25145,1587.3,1587.2,40.8]
[1744833892035,1.25996,1587.2,1587.1,1.26]
[1744833892227,3.06716,1587.2,1587.1,1.26]
[1744833892423,3.06716,1587.2,1587.1,42.06]
[1744833892637,1.8072,1587.2,1587.1,42.06]
[1744833892830,3.2078,1587.3,1587.1,42.06]
[1744833892831,4.46767,1587.3,1587.2,1.25992]
[1744833893133,5.015,1587.3,1587.2,3.15042]
[1744833893336,6.27485,1587.3,1587.2,1.8905]
[1744833894229,1.25992,1587.2,1587.1,40.8]
[1744833894426,3.06712,1587.2,1587.1,42.06]
[1744833895237,1.8072,1587.2,1587.1,42.06]
[1744833896738,3.06712,1587.2,1587.1,42.06]
[1744833896940,3.06712,1587.2,1587.1,40.8]
[1744833897236,3.06712,1587.2,1587.1,42.06]
[1744833897436,1.8072,1587.2,1587.1,42.06]
[1744833897637,3.06712,1587.2,1587.1,42.06]
[1744833899037,3.06712,1587.2,1587.1,40.8]
[1744833899229,1.26008,1587.0,1586.9,0.00945358]
[1744833899435,1.26038,1586.7,1586.5,1.35651]
[1744833899644,1.2604,1586.6,1586.5,0.09603]
[1744833899829,3.0543,1586.6,1586.5,0.09603]
[1744833900139,6.2621,1586.6,1586.5,0.09603]
[1744833900442,1.7939,1586.6,1586.5,1.35651]
[1744833900639,1.26028,1586.8,1586.5,2.03503]
[1744833900839,1.2604,1586.6,1586.5,3.29549]
[1744833901039,6.7684,1587.0,1586.5,3.29549]
[1744833901040,1.26031,1586.8,1586.6,1.26036]
[1744833901341,1.26032,1586.7,1586.6,1.26036]
[1744833901531,3.1034,1586.8,1586.6,1.26036]
[1744833901738,1.26032,1586.7,1586.5,3.29546]
[1744833902041,1.2604,1586.6,1586.5,3.29546]
[1744833902243,3.10348,1586.7,1586.6,1.2604]
[1744833902442,1.8431,1586.7,1586.6,1.2604]
[1744833902641,4.9745,1587.0,1586.5,0.09603]
[1744833902942,1.8431,1586.7,1586.6,1.26038]
[1744833903840,1.26021,1586.9,1586.8,1.26024]
[1744833904044,1.26025,1586.8,1586.5,6.99703]
[1744833904545,1.26024,1586.8,1586.6,1.26034]
[1744833904932,1.9182,1586.7,1586.6,1.26034]
[1744833905538,1.7749,1587.1,1586.9,1.26013]
[1744833905740,3.6931,1587.1,1587.0,1.26008]
[1744833906137,4.95315,1587.1,1586.9,1.2601]
[1744833906337,4.95315,1587.1,1587.0,1.26008]
[1744833906544,1.26008,1587.0,1586.9,1.2601]
[1744833906845,4.95316,1587.1,1587.0,1.26008]
[1744833907043,1.7749,1587.1,1587.0,1.26008]
[1744833907245,1.8182,1587.3,1587.2,1.25992]
[1744833907542,3.07805,1587.3,1587.2,1.25992]
[1744833907736,3.07805,1587.3,1587.1,3.03474]
[1744833908239,3.2078,1587.2,1586.9,1.26014]
[1744833908442,3.09337,1587.1,1586.9,1.26014]
[1744833908643,1.26019,1586.9,1586.8,1.2602]
[1744833908841,1.26019,1586.9,1586.7,9.11106]
[1744833909140,5.026,1587.3,1586.8,3.15061]
[1744833909345,4.91136,1587.3,1587.1,1.25994]
[1744833909646,4.9114,1587.3,1587.1,1.26]
[1744833910143,3.6515,1587.3,1587.2,1.25992]
[1744833910438,0.00945358,1587.4,1587.2,1.25986]
[1744833910643,1.79885358,1587.4,1587.3,1.25985]
[1744833911547,0.00945358,1587.4,1587.3,1.25985]
[1744833911750,0.00945358,1587.4,1587.3,9.11655]
[1744833913149,1.26922358,1587.4,1587.3,6.075]
[1744833913342,1.25985,1587.3,1587.1,1.25995]
[1744833913542,1.25992,1587.2,1587.1,1.25995]
[1744833913852,1.26,1587.1,1587.0,7.9274]
[1744833914039,1.26,1587.1,1587.0,9.18743]
[1744833914451,1.26026,1586.8,1586.7,1.2603]
[1744833914641,1.26026,1586.8,1586.7,3.1127]
[1744833914949,1.7887,1587.3,1587.2,1.25992]
[1744833915153,1.83265358,1587.4,1587.3,1.25985]
[1744833915154,0.00945358,1587.4,1587.3,1.25985]
[1744833915649,1.25987,1587.3,1587.1,7.9274]
[1744833916147,3.2078,1587.2,1586.9,7.33513]
[1744833916449,1.2599,1587.3,1586.9,10.98378]
[1744833916947,1.2599,1587.3,1587.1,1.25996]
[1744833917144,4.47708358,1587.4,1587.2,3.01832]
[1744833917346,0.00945358,1587.4,1587.3,1.25985]
[1744833917544,1.26922358,1587.4,1587.3,1.25985]
[1744833917841,0.00945358,1587.4,1587.3,1.25985]
[1744833920354,3.58e-06,1587.4,1587.3,6.25985]
[1744833921054,3.58e-06,1587.4,1587.3,47.05985]
[1744833925652,1.8847,1588.1,1588.0,1.25929]
[1744833926653,0.00945358,1588.2,1588.0,6.35603]
[1744833926859,0.00945358,1588.2,1588.1,9.20331]
[1744833927857,0.00945358,1588.2,1588.1,50.00331]
[1744833929258,6.9383,1588.7,1588.3,3.14762]
[1744833929457,1.9399,1588.4,1588.3,7.31905]
[1744833930165,3.19887,1588.4,1588.3,6.06]
[1744833930661,3.19887,1588.4,1588.3,7.31905]
[1744833930848,1.9399,1588.4,1588.3,7.31905]
[1744833931053,1.26836358,1588.5,1588.4,1.25897]
[1744833931450,0.00945358,1588.5,1588.4,1.25897]
[1744833931755,0.00945358,1588.5,1588.4,3.07127]
[1744833931955,1.26834358,1588.5,1588.4,3.07127]
[1744833932157,0.00945358,1588.5,1588.4,3.07127]
[1744833932665,1.88055358,1588.5,1588.4,3.07127]
[1744833932861,1.25897,1588.4,1588.3,1.25901]
[1744833933061,1.25897,1588.4,1588.3,7.31801]
[1744833933258,3.13007,1588.4,1588.3,7.31801]
[1744833933656,1.8711,1588.4,1588.3,7.31801]
[1744833934257,3.13007,1588.4,1588.3,7.31801]
[1744833934458,0.00945358,1588.5,1588.4,1.25897]
[1744833934764,0.00945358,1588.5,1588.4,3.08837]
[1744833935065,11.36455358,1588.5,1588.1,40.8]
[1744833935264,1.25908,1588.3,1588.2,6.059]
[1744833935568,0.00945358,1588.5,1588.4,1.25897]
[1744833935764,1.26834358,1588.5,1588.4,1.25897]
[1744833935959,0.00945358,1588.5,1588.4,1.25897]
[1744833936160,1.87655358,1588.5,1588.4,1.25897]
[1744833936958,1.25897,1588.4,1588.3,3.08842]
[1744833937163,1.25897,1588.4,1588.3,6.059]
[1744833937358,6.25897,1588.4,1588.3,6.059]
[1744833937558,8.12607,1588.4,1588.3,6.059]
[1744833937759,6.8671,1588.4,1588.3,1.25905]
[1744833937959,1.8671,1588.4,1588.2,1.25907]
[1744833938159,1.25905,1588.3,1588.2,1.25907]
[1744833938359,3.12611,1588.4,1588.3,1.25905]
[1744833938559,3.12611,1588.4,1588.2,1.25907]
[1744833938767,1.25913,1588.2,1588.1,42.05916]
[1744833938967,1.8671,1588.4,1588.2,1.25913]
[1744833939171,1.8671,1588.4,1588.3,1.25905]
[1744833939467,1.25905,1588.3,1588.2,1.25908]
[1744833939862,3.12613,1588.4,1588.2,1.25908]
[1744833940258,1.8671,1588.4,1588.3,1.25905]
[1744833940460,1.8671,1588.4,1588.2,1.25908]
[1744833940668,1.8671,1588.4,1588.3,1.25905]
[1744833940869,3.12607,1588.4,1588.3,1.25905]
[1744833941072,1.8671,1588.4,1588.3,1.25905]
[1744833941365,1.25913,1588.2,1588.1,40.8]
[1744833941569,1.25921,1588.1,1588.0,0.004]
[1744833941870,1.25953,1587.7,1587.5,7.31864]
[1744833942065,3.15781,1587.6,1587.5,6.059]